bitfinex/quotes_ETHUSD_20260302
["timestamp","ask_amount","ask_price","bid_price","bid_amount"]
[1772444669258,6.44651112,1957.8,1957.5,0.001]
[1772444669572,5.16956609,1957.8,1957.6,1.923]
[1772444671278,5.16956609,1957.8,1957.5,0.001]
[1772444671478,5.16956609,1957.8,1957.7,1.923]
[1772444672189,5.16956609,1957.8,1957.5,0.001]
[1772444672374,5.16956609,1957.8,1957.6,1.923]
[1772444672595,5.16956609,1957.8,1957.6,1.924]
[1772444674076,0.002,1958.2,1957.7,5.18859353]
[1772444674819,0.002,1958.4,1958.0,5.18859353]
[1772444674996,5.17110495,1959.0,1958.2,5.18859353]
[1772444675302,0.00353886,1959.0,1958.5,5.18859353]
[1772444675501,0.00353886,1959.0,1958.6,7.11359353]
[1772444675708,0.002,1959.2,1958.7,5.18859353]
[1772444676396,0.002,1959.5,1958.9,5.18859353]
[1772444676397,5.16956609,1959.5,1958.9,5.18859353]
[1772444676699,5.16956609,1959.5,1959.0,1.925]
[1772444677097,5.16956609,1959.5,1959.0,7.11359353]
[1772444677481,5.16956609,1959.5,1959.0,8.38970105]
[1772444677906,0.002,1959.5,1959.0,8.38970105]
[1772444678688,0.002,1959.5,1959.0,3.20110752]
[1772444678887,5.10457604,1959.8,1959.1,5.18859353]
[1772444678888,0.002,1959.8,1959.1,5.18859353]
[1772444679805,0.002,1959.4,1959.2,6.46462456]
[1772444680501,0.002,1959.7,1959.2,6.46462456]
[1772444680915,0.002,1959.7,1959.3,7.11559353]
[1772444681220,5.16956609,1959.7,1958.8,5.18859353]
[1772444681421,5.16956609,1959.7,1958.6,1.927]
[1772444681422,5.16756609,1959.5,1958.6,1.927]
[1772444681723,5.16756609,1959.0,1958.3,1.927]
[1772444682088,5.16756609,1959.0,1958.1,9.13327426]
[1772444682289,5.16756609,1959.0,1958.1,6.46533904]
[1772444682611,1.27609616,1959.1,1958.3,5.18859353]
[1772444682800,6.44353199,1959.3,1958.4,5.18859353]
[1772444683123,6.44353199,1959.3,1958.3,2.1931551]
[1772444683124,6.44353199,1959.3,1958.3,1.926]
[1772444684016,6.44353199,1959.3,1958.3,3.20257253]
[1772444684512,6.44353199,1959.3,1958.4,1.926]
[1772444686219,6.44353199,1959.3,1958.2,1.27664927]
[1772444686411,6.44353199,1959.3,1958.3,1.925]
[1772444686719,6.44353199,1959.3,1958.1,1.2767345]
[1772444686906,6.44353199,1959.3,1958.2,1.925]
[1772444687593,5.3239242,1958.7,1958.0,1.92653886]
[1772444688528,5.3239242,1958.5,1958.0,1.92653886]
[1772444689925,5.3239242,1958.5,1958.0,0.00153886]
[1772444690625,6.60047648,1958.4,1958.0,0.00153886]
[1772444691716,6.60047648,1958.4,1958.1,0.001]
[1772444692219,5.3239242,1958.4,1958.1,0.001]
[1772444692521,5.3239242,1958.4,1957.7,7.53037006]
[1772444692725,6.60052132,1958.4,1957.8,0.001]
[1772444698411,6.60052132,1958.4,1957.8,7.36486211]
[1772444699439,6.60052132,1958.4,1957.8,8.64174568]
[1772444699808,6.60052132,1958.4,1957.8,6.71774568]
[1772444700009,6.60052132,1958.4,1957.8,8.64174568]
[1772444700218,6.60052132,1958.4,1957.8,5.44086211]
[1772444700424,6.60052132,1958.4,1957.8,0.001]
[1772444700620,5.3239242,1958.1,1957.5,0.001]
[1772444700827,3.84659712,1958.4,1957.7,5.43986211]
[1772444701519,10.4300509,1958.5,1957.8,6.71680561]
[1772444701520,5.3239242,1958.5,1957.8,6.71680561]
[1772444701720,6.60032296,1958.7,1957.9,5.43986211]
[1772444701925,6.60028722,1958.7,1958.1,5.43986211]
[1772444702140,5.3239242,1958.7,1958.1,5.43986211]
[1772444703145,1.27632272,1958.8,1958.1,5.43986211]
[1772444703324,6.60024692,1958.8,1958.1,5.43986211]
[1772444703525,6.60024692,1958.8,1958.2,6.71654477]
[1772444703728,5.3239242,1958.8,1958.2,6.71654477]
[1772444703915,6.60022787,1958.8,1958.2,6.71654477]
[1772444704662,5.3239242,1958.8,1958.2,6.71654477]
[1772444704961,6.60023652,1958.8,1958.2,1.926]
[1772444705163,6.60023652,1958.8,1958.2,7.36586211]
[1772444705513,6.60023652,1958.8,1958.3,1.27661747]
[1772444705709,6.60023652,1958.8,1958.2,1.926]
[1772444705935,6.60023652,1958.8,1958.2,3.20268006]
[1772444706155,6.60023652,1958.8,1958.2,1.926]
[1772444706315,6.60023652,1958.8,1958.2,3.20265558]
[1772444706648,5.3239242,1958.8,1958.3,5.43986211]
[1772444707736,6.60021873,1958.8,1958.3,6.71644546]
[1772444707978,5.3239242,1958.8,1958.3,6.71644546]
[1772444708175,6.60021825,1958.8,1958.3,6.71644546]
[1772444708339,5.3239242,1958.8,1958.3,6.71644546]
[1772444708727,6.60021993,1958.8,1958.3,5.43986211]
[1772444709054,6.60021993,1958.8,1958.3,7.36786211]
[1772444709235,6.60021993,1958.8,1958.3,8.6444759]
[1772444712177,6.60021993,1958.8,1958.3,7.36786211]
[1772444712371,6.60021993,1958.8,1958.1,0.001]
[1772444712558,6.60021993,1958.8,1958.1,6.30844771]
[1772444713276,6.60021993,1958.8,1958.2,1.931]
[1772444713912,6.60021993,1958.8,1958.1,5.03170922]
[1772444714240,6.60021993,1958.8,1958.1,0.001]
[1772444716647,5.28230273,1958.6,1958.1,0.001]
[1772444719000,6.55877754,1958.6,1958.1,5.35298071]
[1772444722907,6.55877754,1958.6,1958.1,0.001]
[1772444723493,6.55877754,1958.6,1957.8,0.001]
[1772444723699,5.2427168,1958.4,1957.8,0.001]
[1772444724098,5.2427168,1957.8,1957.7,0.001]
[1772444725021,5.2427168,1957.8,1957.5,0.001]
[1772444725609,1.27674822,1958.1,1957.5,5.35298071]
[1772444725810,6.51946502,1958.1,1957.5,5.35298071]
[1772444726118,1.27671953,1958.2,1957.5,5.35298071]
[1772444726438,5.2427168,1958.2,1957.7,5.35198071]
[1772444726643,1.27666814,1958.3,1957.7,5.35198071]
[1772444727427,10.34850498,1958.6,1957.7,5.35198071]
[1772444727643,5.2427168,1958.5,1957.7,5.35198071]
[1772444728000,5.2427168,1958.2,1957.5,5.35298071]
[1772444728205,5.2427168,1958.0,1957.5,0.001]
[1772444729254,5.2427168,1958.0,1957.6,0.001]
[1772444729915,5.2427168,1958.0,1957.5,0.001]
[1772444730344,6.51959508,1957.9,1957.5,0.001]
[1772444733113,2.152,1957.8,1957.5,0.001]
[1772444733312,5.2427168,1957.7,1957.3,0.001]
[1772444734046,5.2427168,1957.6,1957.2,0.001]
[1772444734242,5.2427168,1957.4,1957.2,0.001]
[1772444734445,6.5199865,1957.3,1957.2,0.001]
[1772444735020,6.49444502,1957.3,1957.2,0.001]
[1772444735744,6.49444502,1957.3,1957.0,0.00253886]
[1772444735916,5.2427168,1957.1,1957.0,0.00253886]
[1772444736117,5.2427168,1957.1,1956.3,5.35198071]
[1772444736321,5.2427168,1957.1,1956.5,0.00253886]
[1772444736848,1.2774655,1957.0,1956.5,0.00253886]
[1772444737048,6.5201823,1957.0,1956.5,0.00253886]
[1772444737248,7.3997168,1956.9,1956.5,0.00253886]
[1772444737624,5.2427168,1956.8,1956.5,0.00253886]
[1772444738551,2.157,1956.9,1956.5,0.00253886]
[1772444738730,3.43539881,1957.2,1956.5,6.62973897]
[1772444738917,3.43535205,1957.2,1956.6,0.00253886]
[1772444739119,3.43535205,1957.2,1956.7,5.35198071]
[1772444740337,3.43615269,1957.5,1956.9,5.35198071]
[1772444740820,5.2427168,1956.6,1955.3,5.35198071]
[1772444741024,5.2427168,1956.4,1955.6,1.27835059]
[1772444741342,0.2662233,1956.7,1956.0,5.35351957]
[1772444741518,0.2662233,1956.7,1956.6,0.001]
[1772444741718,0.2662233,1956.7,1956.0,6.63162179]
[1772444742236,0.2662233,1956.7,1956.5,0.001]
[1772444742642,1.27772666,1956.6,1956.5,0.001]
[1772444742829,5.2427168,1956.5,1956.0,0.00153886]
[1772444743928,5.2427168,1956.5,1955.7,5.92240142]
[1772444744324,5.2427168,1956.5,1955.7,4.64409622]
[1772444744552,5.2427168,1956.5,1955.7,5.92240135]
[1772444744759,1.27785728,1956.4,1955.7,5.92240135]
[1772444744956,6.52054392,1956.5,1955.7,5.92240135]
[1772444745166,0.2662233,1956.7,1955.7,5.92240135]
[1772444745344,1.54388476,1956.7,1955.7,5.92240135]
[1772444745549,1.54388476,1956.7,1955.9,5.35198071]
[1772444746063,0.2662233,1956.7,1955.9,5.35198071]
[1772444746365,0.2662233,1956.7,1955.5,5.11377207]
[1772444746366,8.96743388,1956.6,1955.5,6.63039104]
[1772444746861,1.27779197,1956.5,1955.5,6.63039104]
[1772444747162,1.27779197,1956.5,1955.6,5.35198071]
[1772444748035,1.27779197,1956.5,1955.7,7.00056777]
[1772444748361,1.27779197,1956.5,1955.7,5.07756777]
[1772444748861,3.43677415,1956.6,1955.7,5.07756777]
[1772444749163,5.110751,1956.7,1955.9,5.07756777]
[1772444749164,1.27766136,1956.7,1955.9,5.07756777]
[1772444750035,5.34632615,1956.6,1955.8,1.2782493]
[1772444750234,5.34632615,1956.6,1955.7,6.35583149]
[1772444750854,5.34632615,1956.6,1955.8,5.07756777]
[1772444751262,1.27779197,1956.5,1955.8,6.35575862]
[1772444751492,1.27779197,1956.5,1955.9,5.07756777]
[1772444754170,6.62398751,1956.7,1955.9,6.35570987]
[1772444754684,1.27766136,1956.7,1956.0,5.07756777]
[1772444754887,0.002,1956.4,1956.0,5.07756777]
[1772444755400,1.27901212,1957.0,1956.3,5.07756777]
[1772444755555,0.00153886,1957.0,1956.4,6.64328485]
[1772444755751,0.00153886,1957.0,1956.5,5.07756777]
[1772444755752,0.002,1956.7,1956.5,5.07756777]
[1772444755955,0.00153886,1957.0,1956.6,1.56571708]
[1772444756185,0.00153886,1957.0,1956.5,5.07756777]
[1772444756483,0.00153886,1957.0,1956.6,6.08908375]
[1772444756685,0.00153886,1957.0,1956.7,5.07756777]
[1772444757567,0.00153886,1957.0,1956.4,5.07756777]
[1772444757756,5.34786501,1957.0,1956.3,1.925]
[1772444758285,5.34786501,1957.0,1956.3,7.00256777]
[1772444758468,0.00153886,1957.0,1956.4,1.27785728]
[1772444758957,0.00153886,1957.0,1956.3,6.35544948]
[1772444759761,5.34786501,1957.0,1956.3,6.35544948]
[1772444759974,5.34786501,1957.0,1956.3,6.35548948]
[1772444760174,5.34786501,1957.0,1956.3,5.07756777]
[1772444760372,6.62385693,1956.9,1956.1,4.62382423]
[1772444760675,6.62385693,1956.9,1956.0,1.27806816]
[1772444761087,6.62385693,1956.9,1955.9,8.28170457]
[1772444761491,6.62385693,1956.9,1956.0,5.07756777]
[1772444762464,6.62385693,1956.9,1956.0,6.35568377]
[1772444762664,6.62385693,1956.9,1956.1,5.06923069]
[1772444762895,3.43304128,1957.0,1956.2,5.06923069]
[1772444763073,1.27902424,1957.0,1956.4,5.06923069]
[1772444763272,0.00153886,1957.0,1956.4,5.06923069]
[1772444764192,1.27900591,1957.0,1956.4,5.06923069]
[1772444764674,4.9664805,1956.9,1956.0,1.27806473]
[1772444764877,4.9664805,1956.8,1955.9,6.34738861]
[1772444765078,4.9664805,1956.8,1955.9,6.34739954]
[1772444765478,4.9664805,1956.8,1955.9,5.06923069]
[1772444765687,4.9664805,1956.8,1955.9,6.3474114]
[1772444766889,6.24414186,1956.7,1955.9,6.3474114]
[1772444767097,4.9664805,1956.6,1955.9,6.3474114]
[1772444767291,4.9664805,1956.6,1956.2,0.001]
[1772444768570,1.27766136,1956.7,1956.2,0.001]
[1772444768871,5.11264547,1956.8,1956.2,0.001]
[1772444769072,4.9664805,1956.6,1956.2,0.001]
[1772444770976,1.27779197,1956.5,1956.2,0.001]
[1772444771798,3.8477711,1956.6,1956.2,5.07023069]
[1772444772106,1.2777051,1956.7,1956.2,0.001]
[1772444772305,1.27959729,1956.8,1956.2,5.07023069]
[1772444773104,0.002,1956.8,1956.3,6.34715329]
[1772444774703,0.002,1956.8,1956.3,5.06923069]
[1772444775908,5.06744234,1956.8,1956.2,0.001]
[1772444778711,1.27766136,1956.7,1956.2,0.001]
[1772444779522,5.10386377,1956.6,1956.2,0.001]
[1772444780099,7.25986377,1956.6,1956.2,0.001]
[1772444780295,1.27766136,1956.7,1956.2,4.77177711]
[1772444781174,1.27959607,1956.8,1956.2,6.04975647]
[1772444781379,0.002,1956.8,1956.3,4.77077711]
[1772444782300,0.002,1956.8,1956.3,4.77177711]
[1772444782499,0.002,1956.7,1956.3,4.77177711]
[1772444783202,0.002,1956.7,1956.3,6.04967423]
[1772444783402,0.002,1956.7,1956.4,4.77077711]
[1772444783618,0.002,1956.8,1956.4,4.77077711]
[1772444785490,0.002,1956.8,1956.5,4.77077711]
[1772444785915,0.002,1956.8,1956.3,4.77177711]
[1772444786618,5.10586377,1956.8,1956.3,0.001]
[1772444787609,1.27766136,1956.7,1956.3,0.001]
[1772444789819,0.002,1956.8,1956.3,4.77177711]
[1772444791097,0.00153886,1957.0,1956.4,4.77077711]
[1772444791601,2.57,1957.4,1956.6,4.77077711]
[1772444791809,6.38100441,1957.5,1956.8,4.77077711]
[1772444792013,1.27712348,1957.6,1956.8,4.77077711]
[1772444792598,0.002,1957.8,1956.9,4.77077711]
[1772444792917,5.10386377,1957.5,1956.6,1.923]
[1772444793099,5.10386377,1957.3,1956.6,1.923]
[1772444793622,5.10386377,1957.2,1956.4,4.77077711]
[1772444794118,1.27740023,1957.1,1956.4,6.04858938]
[1772444795111,1.27740023,1957.1,1956.5,4.77077711]
[1772444796104,1.27740023,1957.1,1956.5,6.04851081]
[1772444796419,1.27740023,1957.1,1956.6,4.77077711]
[1772444799233,5.10936625,1957.2,1956.6,4.77077711]
[1772444799924,5.10936625,1957.2,1956.6,6.04850062]
[1772444800257,6.38119873,1957.2,1956.6,6.04850062]
[1772444801741,6.38119873,1957.2,1956.6,4.77077711]
[1772444802746,5.10386377,1957.1,1956.4,6.04859299]
[1772444803145,0.002,1957.7,1956.6,4.77077711]
[1772444803345,0.002,1957.7,1957.1,5.55086734]
[1772444803524,0.002,1957.7,1957.0,2.19531751]
[1772444803525,0.002,1957.7,1957.3,4.77077711]
[1772444803844,0.002,1957.7,1957.5,4.77077711]
[1772444804019,0.002,1957.8,1957.5,4.77077711]
[1772444805009,7.95136824,1957.8,1957.5,4.77077711]
[1772444806215,7.95136824,1957.8,1957.4,1.27720445]
[1772444806216,7.94936824,1957.7,1957.4,1.27720445]
[1772444806573,4.9294789,1957.7,1956.1,5.386]
[1772444806721,4.9294789,1955.8,1953.9,24.78151453]
[1772444807051,1.33506653,1955.2,1954.4,4.77077711]
[1772444807214,1.33506653,1955.2,1954.5,8.23399907]
[1772444807415,4.56893222,1954.7,1954.6,2.65868911]
[1772444807734,0.00153886,1955.0,1954.7,3.14132346]
[1772444807935,0.00153886,1955.0,1954.7,1.9e-07]
[1772444808135,7.42697616,1955.2,1954.4,4.77077711]
[1772444808444,2.4327045,1954.9,1954.4,4.77077711]
[1772444808812,2.4327045,1954.9,1954.4,4.02191472]
[1772444809345,2.4327045,1955.0,1954.4,4.02191472]
[1772444809541,2.4327045,1955.0,1954.5,7.51764577]
[1772444810329,3.71149955,1955.0,1954.5,7.51764577]
[1772444811219,1.27879505,1955.0,1954.5,7.51764577]
[1772444811860,3.71145988,1955.1,1954.5,7.51764577]
[1772444813032,3.71145988,1955.1,1954.3,2.59620887]
[1772444813358,3.71145988,1955.1,1954.4,4.86049552]
[1772444814251,3.71145988,1955.1,1954.3,7.45670439]
[1772444814950,3.71145988,1955.1,1954.3,7.40670439]
[1772444817228,6.03226489,1955.0,1954.0,0.00153886]
[1772444817432,8.46496939,1955.0,1954.1,2.19531751]
[1772444817626,6.03226489,1955.0,1954.1,3.13078773]
[1772444817856,8.24526489,1955.0,1954.1,3.13078773]
[1772444818559,6.03226489,1955.0,1954.1,3.13078773]
[1772444818759,8.24526489,1955.0,1954.1,3.13078773]
[1772444819350,6.03226489,1954.8,1954.0,0.00153886]
[1772444819659,1.27883779,1954.9,1954.1,0.93547022]
[1772444819851,3.01698302,1954.8,1954.1,0.93547022]
[1772444820159,3.01698302,1954.8,1954.2,0.001]
[1772444820361,0.002,1954.9,1954.3,0.93547022]
[1772444821258,0.002,1954.9,1954.4,1.27916496]
[1772444821465,0.002,1955.0,1954.5,0.93347022]
[1772444821764,0.002,1955.0,1954.6,0.93347022]
[1772444823272,0.002,1955.0,1954.6,2.21246431]
[1772444824540,0.002,1955.2,1954.7,0.93347022]
[1772444825476,0.002,1955.2,1954.8,1.27890321]
[1772444830865,3.02469722,1955.1,1954.8,1.27890321]
[1772444831072,0.002,1955.2,1954.8,1.27890321]
[1772444833261,2.4347045,1955.2,1954.8,1.27890321]
[1772444833576,0.001,1955.1,1954.8,1.27890321]
[1772444834185,2.4337045,1955.1,1954.8,1.27890321]
[1772444834660,0.001,1955.1,1954.8,1.27890321]
[1772444835264,2.4327045,1955.0,1954.7,6.05018307]
[1772444835478,2.4327045,1955.0,1954.8,1.27890321]
[1772444836150,0.001,1955.1,1954.8,1.27890321]
[1772444836355,4.53262637,1955.1,1954.8,1.27890321]
[1772444836590,0.002,1955.2,1954.8,1.27890321]
[1772444836919,6.03326489,1955.5,1954.8,1.27890321]
[1772444836920,6.03326489,1955.5,1954.9,2.19531751]
[1772444837066,6.5,1955.8,1954.9,4.17031751]
[1772444837396,6.5,1955.8,1954.9,1.975]
[1772444838458,9.97218746,1955.9,1955.1,2.19531751]
[1772444838655,6.5,1955.8,1955.0,1.27877237]
[1772444840776,6.5,1955.8,1955.1,2.19531751]
[1772444843068,6.5,1955.8,1955.2,1.27864157]
[1772444846389,6.50153886,1956.0,1955.2,1.27864157]
[1772444846594,7.77966137,1956.0,1954.9,1.975]
[1772444846892,6.5,1955.4,1954.7,0.0011]
[1772444847093,6.49945,1955.1,1954.4,0.0011]
[1772444847462,6.49945,1954.9,1954.4,0.0011]
[1772444847667,6.49945,1954.7,1954.4,0.0011]
[1772444849697,7.77845766,1954.7,1954.4,0.0011]
[1772444850273,7.77845766,1954.7,1954.0,0.00253886]
[1772444850593,1.56949937,1954.6,1954.0,0.00253886]
[1772444850796,6.49945,1954.5,1954.0,0.00253886]
[1772444850967,6.49945,1954.3,1954.0,0.00253886]
[1772444851168,6.49945,1954.3,1953.4,5.11921315]
[1772444851169,6.49945,1954.3,1953.4,1.27977956]
[1772444851396,6.49945,1954.3,1953.3,1.56949937]
[1772444851597,6.49945,1954.3,1953.4,0.0011]
[1772444851896,6.49945,1954.3,1953.4,1.2809198]
[1772444852064,8.68945,1954.3,1953.4,1.2809198]
[1772444852268,6.49945,1954.2,1953.4,1.2798198]
[1772444852999,6.49945,1954.2,1953.4,2.84931917]
[1772444853668,6.49945,1954.2,1953.4,2.85041917]
[1772444853868,6.49945,1954.2,1953.5,0.0011]
[1772444854804,6.49945,1954.5,1953.6,1.56949937]
[1772444855103,8.68845,1954.5,1953.6,1.52059937]
[1772444855472,6.49945,1954.4,1953.6,1.52059937]
[1772444856403,6.49945,1954.4,1953.7,1.27962327]
[1772444857912,6.49945,1954.4,1953.7,1.25408179]
[1772444858817,7.77863587,1954.4,1953.7,1.25408179]
[1772444860527,7.77863587,1954.4,1953.5,5.11971888]
[1772444860732,6.49945,1954.2,1953.5,5.11971888]
[1772444861728,6.49945,1954.2,1953.5,0.0011]
[1772444862796,6.49945,1954.0,1953.5,0.0011]
[1772444863036,6.49945,1953.8,1953.5,0.0011]
[1772444864537,6.49945,1953.8,1953.4,0.0011]
[1772444864907,6.4989,1953.6,1953.4,0.0011]
[1772444865835,8.6889,1953.5,1953.4,0.0011]
[1772444866340,6.4989,1953.5,1953.4,0.0011]
[1772444867023,7.77865542,1953.5,1953.0,2.09423459]
[1772444867207,7.77866478,1953.5,1953.0,2.09423459]
[1772444867409,7.77866478,1953.5,1953.0,0.81418592]
[1772444868138,7.77866478,1953.5,1953.0,2.09423916]
[1772444868139,6.4989,1953.5,1953.0,2.09423916]
[1772444868328,7.77865971,1953.5,1953.0,2.09423916]
[1772444869036,7.77865971,1953.5,1953.0,0.81418592]
[1772444869540,7.77865971,1953.5,1953.0,2.09425865]
[1772444869854,6.4989,1953.5,1953.0,2.09425865]
[1772444870011,8.6919,1953.5,1953.0,2.09425865]
[1772444870214,6.4989,1953.5,1953.0,2.09425865]
[1772444871143,8.6909,1953.5,1953.0,2.09425865]
[1772444871644,6.4989,1953.4,1953.0,2.09425865]
[1772444871845,6.4989,1953.4,1953.0,0.81418592]
[1772444872070,6.4989,1953.4,1953.0,2.09426402]
[1772444872342,6.4989,1953.4,1953.0,0.81418592]
[1772444873944,6.4989,1953.4,1953.1,0.0011]
[1772444874447,6.4999,1953.4,1953.1,0.0011]
[1772444875844,2.195,1953.3,1953.1,0.0011]
[1772444876051,6.4989,1953.3,1953.1,0.0011]
[1772444876349,2.195,1953.3,1953.1,0.0011]
[1772444876647,6.4989,1953.2,1953.0,0.81528592]
[1772444877358,8.6939,1953.2,1953.0,0.81528592]
[1772444877522,6.4989,1953.2,1953.0,0.81528592]
[1772444877855,8.6939,1953.2,1953.0,0.81528592]
[1772444878755,6.49835,1953.1,1953.0,0.81528592]
[1772444879126,1e-08,1953.2,1953.0,2.09532257]
[1772444879527,0.001,1953.4,1953.0,2.09532257]
[1772444880565,0.001,1953.4,1953.0,8.10577558]
[1772444880867,3.79,1953.7,1953.1,6.01045301]
[1772444881036,8.05094769,1953.9,1953.1,6.01045301]
[1772444881235,8.05094769,1954.2,1953.3,6.01045301]
[1772444881453,8.05094769,1954.2,1953.5,6.01045301]
[1772444881975,5.85694769,1954.2,1953.5,6.01045301]
[1772444883162,0.001,1954.3,1953.5,6.01045301]
[1772444883368,5.85794769,1954.3,1953.6,7.29014178]
[1772444883669,5.85794769,1954.3,1953.3,1.956]
[1772444883670,5.85694769,1954.1,1953.3,7.29033758]
[1772444883834,8.04994769,1954.0,1953.3,7.29033758]
[1772444884644,5.85694769,1953.9,1953.3,7.29033758]
[1772444884933,5.85694769,1954.2,1953.3,7.29033758]
[1772444885136,8.04994769,1954.2,1953.3,7.29033758]
[1772444885837,5.85694769,1954.1,1953.3,7.29033758]
[1772444887060,5.85694769,1954.1,1953.5,6.01155301]
[1772444887361,5.85794769,1954.1,1953.5,6.01155301]
[1772444887663,5.85794769,1954.1,1953.6,1.27968877]
[1772444887966,0.001,1954.1,1953.6,7.29014178]
[1772444893742,0.001,1954.1,1953.7,5.97171969]
[1772444894176,0.001,1954.1,1953.8,7.25127747]
[1772444895077,0.001,1954.1,1953.7,5.97171969]
[1772444895256,0.001,1954.3,1953.7,5.97171969]
[1772444895462,0.001,1954.3,1953.8,1.962]
[1772444895664,0.001,1954.3,1953.8,7.93371969]
[1772444896245,0.001,1954.3,1953.9,1.27949229]
[1772444898183,0.001,1954.3,1953.9,7.72948815]
[1772444899868,0.001,1954.2,1953.9,7.72948815]
[1772444902394,6.15658647,1954.2,1953.7,5.11834836]
[1772444905292,6.15658647,1954.2,1953.6,7.72961913]
[1772444909971,0.001,1954.2,1953.7,6.44999586]
[1772444910295,0.001,1954.2,1953.9,6.44999586]
[1772444910799,0.001,1954.3,1954.0,6.44999586]
[1772444911363,0.001,1954.2,1954.0,6.44999586]
[1772444913194,6.15558647,1954.7,1954.1,1.27936134]
[1772444913396,6.15558647,1954.7,1954.1,7.7293572]
[1772444913602,6.15558647,1954.7,1954.1,9.7103572]
[1772444914775,6.15558647,1954.7,1954.2,6.44999586]
[1772444915391,6.15558647,1954.7,1954.3,1.27923041]
[1772444918790,6.15558647,1954.9,1954.3,7.72922627]
[1772444918991,0.00153886,1955.0,1954.5,6.44999586]
[1772444919489,6.15712533,1955.0,1954.6,1.985]
[1772444921294,6.15712533,1955.0,1954.7,1.27896863]
[1772444921807,6.15712533,1955.0,1954.6,3.2639817]
[1772444922307,0.00153886,1955.0,1954.6,9.71397756]
[1772444922513,0.00153886,1955.0,1954.7,6.44999586]
[1772444923379,0.001,1954.9,1954.8,1.27890321]
[1772444926712,0.001,1954.9,1954.7,1.27892121]
[1772444932419,0.001,1954.9,1954.7,7.33387084]
[1772444936893,0.002,1954.8,1954.7,1.27892121]
[1772444940542,0.002,1954.8,1954.5,0.001]
[1772444940543,6.57661358,1954.8,1954.5,0.001]
[1772444940921,6.10526176,1954.8,1954.5,0.001]
[1772444941410,0.002,1954.8,1954.5,9.35004463]
[1772444941609,0.002,1954.8,1954.6,6.05494963]
[1772444941826,0.002,1954.8,1954.7,1.27896863]
[1772444942006,0.002,1954.8,1954.6,1.27898443]
[1772444942207,0.002,1954.8,1954.6,7.33393406]
[1772444942408,0.001,1954.9,1954.6,7.33393406]
[1772444943643,6.10426176,1954.9,1954.6,1.27898443]
[1772444943943,7.38312161,1954.9,1954.5,0.001]
[1772444944639,6.10426176,1954.9,1954.5,7.33503497]
[1772444944823,7.38310174,1954.9,1954.5,6.05594963]
[1772444945011,6.10426176,1954.9,1954.5,1.28008772]
[1772444945544,7.3831024,1954.9,1954.5,0.001]
[1772444945846,6.10426176,1954.9,1954.5,0.001]
[1772444947147,7.38310153,1954.9,1954.5,0.001]
[1772444947326,6.10426176,1954.9,1954.5,0.001]
[1772444948008,7.38310887,1954.9,1954.5,0.001]
[1772444948413,7.38310887,1954.9,1954.2,1.27924344]
[1772444948840,6.10426176,1954.9,1954.2,1.27924344]
[1772444949143,7.38310364,1954.9,1954.3,8.07694963]
[1772444949822,6.10426176,1954.9,1954.3,8.07694963]
[1772444950148,7.38309983,1954.9,1954.4,1.27916496]
[1772444950641,0.001,1954.9,1954.6,0.0011]
[1772444950846,0.001,1954.8,1954.6,6.05604963]
[1772444951041,0.001,1954.8,1954.6,0.0011]
[1772444951427,6.10426176,1954.8,1954.6,0.0011]
[1772444956654,6.10426176,1954.8,1954.5,0.0011]
[1772444957993,7.38317112,1954.8,1954.5,0.0011]
[1772444958249,7.38317112,1954.8,1954.0,7.45217865]
[1772444958250,5.88726525,1954.6,1954.0,7.45217865]
[1772444959026,5.88726525,1954.4,1954.0,7.45217865]
[1772444959637,5.88726525,1954.4,1954.0,1.28051632]
[1772444961152,5.88726525,1954.4,1954.0,0.0011]
[1772444963025,7.16643199,1954.4,1954.0,0.0011]
[1772444963231,5.88726525,1954.3,1954.0,0.0011]
[1772444963854,5.88726525,1954.3,1953.8,7.45226756]
[1772444964031,5.88726525,1954.3,1953.8,7.45230455]
[1772444964230,5.88726525,1954.3,1953.9,0.0011]
[1772444965237,7.16655198,1954.3,1953.9,0.0011]
[1772444965436,5.88726525,1954.2,1953.9,0.0011]
[1772444965640,5.88726525,1954.0,1953.7,0.0011]
[1772444970362,7.16669296,1954.0,1953.7,0.0011]
[1772444970570,5.88726525,1954.0,1953.7,0.0011]
[1772444971377,5.975,1954.3,1953.9,6.17166233]
[1772444971565,8.07226525,1954.5,1954.0,7.76567739]
[1772444971743,9.35136902,1954.5,1954.0,7.45108914]
[1772444972143,9.35136902,1954.5,1954.0,6.17166233]
[1772444972681,5.88726525,1954.4,1954.0,6.17166233]
[1772444974860,5.88726525,1954.4,1954.0,7.4510652]
[1772444975164,3.46816799,1954.4,1953.8,7.76580422]
[1772444975368,9.67826525,1954.7,1953.9,6.17166233]
[1772444975582,5.88726525,1954.6,1954.1,6.17166233]
[1772444975886,0.001,1954.7,1954.4,0.31458825]
[1772444976176,0.31458825,1954.5,1954.1,0.0011]
[1772444976338,0.31458825,1954.5,1954.1,6.17276233]
[1772444976339,1.101,1954.5,1954.1,6.17276233]
[1772444976953,5.88726525,1954.6,1954.1,7.45211753]
[1772444977157,0.001,1954.7,1954.3,6.17166233]
[1772444980270,5.88726525,1954.6,1954.2,1.27926103]
[1772444980445,5.88726525,1954.6,1954.2,7.45092336]
[1772444981376,0.001,1954.7,1954.2,7.45092336]
[1772444981786,5.88826525,1954.7,1954.2,7.45092336]
[1772444983982,7.16723962,1954.7,1954.2,7.45092336]
[1772444985755,7.16723962,1954.7,1954.2,6.17166233]
[1772444985956,7.16723962,1954.7,1954.2,7.45095374]
[1772444986683,7.16723962,1954.7,1954.2,6.17166233]
[1772444987180,7.16723962,1954.7,1954.2,7.45095794]
[1772444988281,6.07740099,1954.5,1954.1,2.0381]
[1772444988447,6.07740099,1954.5,1954.1,8.34995328]
[1772444988655,6.07740099,1954.5,1954.1,2.0381]
[1772444988853,6.07740099,1954.5,1954.1,0.0011]
[1772444990182,6.07740099,1954.4,1954.1,0.0011]
[1772444992500,6.07740099,1954.2,1953.9,0.0011]
[1772444993003,6.07740099,1954.2,1953.9,6.31295328]
[1772444993798,2.199,1954.3,1953.9,7.59243719]
[1772444993970,0.001,1954.6,1954.2,6.62644153]
[1772444994364,6.07840099,1954.6,1954.1,1.27936134]
[1772444994558,1.59462814,1954.6,1954.0,6.31185328]
[1772444994885,6.07740099,1954.5,1953.9,1.28056417]
[1772444995057,6.07740099,1954.5,1953.9,7.59241745]
[1772444996587,1.27916496,1954.4,1953.9,7.59241745]
[1772444996791,7.35656595,1954.4,1953.9,7.59241745]